[Event "MČR juniorů a juniorek v rapid šachu 2024"]
[Site "Hotel Fit Fun, Harrachov, Czech Republic"]
[Date "2024.09.22"]
[Round "9.30"]
[White "Lebeda Frantisek Jiri"]
[Black "Pes Matej"]
[Result "0-1"]
[TimeControl "20+5"]
[BlackFideId "23766816"]
[WhiteElo "1000"]
[BlackElo "1697"]

1. e4 {[%clk 00:20:03]} {[%emt 00:00:06]} e5 {[%clk 00:19:58]} {[%emt
00:00:14]} 2. Nf3 {[%clk 00:20:04]} {[%emt 00:00:03]} Nc6 {[%clk 00:20:00]}
{[%emt 00:00:03]} 3. Bb5 {[%clk 00:19:58]} {[%emt 00:00:10]} a6 {[%clk
00:20:03]} {[%emt 00:00:03]} 4. Ba4 {[%clk 00:20:00]} {[%emt 00:00:04]} Nf6
{[%clk 00:20:04]} {[%emt 00:00:03]} 5. O-O {[%clk 00:20:00]} {[%emt 00:00:04]}
b5 {[%clk 00:20:05]} {[%emt 00:00:05]} 6. Bb3 {[%clk 00:20:03]} {[%emt
00:00:02]} Bb7 {[%clk 00:20:07]} {[%emt 00:00:02]} 7. Re1 {[%clk 00:20:05]}
{[%emt 00:00:03]} Bc5 {[%clk 00:20:07]} {[%emt 00:00:05]} 8. c3 {[%clk
00:19:59]} {[%emt 00:00:12]} d6 {[%clk 00:19:47]} {[%emt 00:00:25]} 9. d3
{[%clk 00:19:39]} {[%emt 00:00:25]} O-O {[%clk 00:19:17]} {[%emt 00:00:34]} 10.
Bg5 {[%clk 00:19:18]} {[%emt 00:00:26]} Bb6 {[%clk 00:18:30]} {[%emt 00:00:52]}
11. Nbd2 {[%clk 00:19:02]} {[%emt 00:00:21]} Nb8 {[%clk 00:17:36]} {[%emt
00:01:00]} 12. a4 {[%clk 00:18:01]} {[%emt 00:01:06]} Nbd7 {[%clk 00:16:59]}
{[%emt 00:00:41]} 13. axb5 {[%clk 00:17:40]} {[%emt 00:00:27]} axb5 {[%clk
00:17:00]} {[%emt 00:00:04]} 14. Qc2 {[%clk 00:17:28]} {[%emt 00:00:17]} h6
{[%clk 00:15:32]} {[%emt 00:01:33]} 15. Be3 {[%clk 00:16:59]} {[%emt 00:00:33]}
Nc5 {[%clk 00:15:10]} {[%emt 00:00:28]} 16. Bxc5 {[%clk 00:16:50]} {[%emt
00:00:14]} Bxc5 {[%clk 00:15:09]} {[%emt 00:00:06]} 17. h3 {[%clk 00:16:18]}
{[%emt 00:00:36]} Qe7 {[%clk 00:12:40]} {[%emt 00:02:34]} 18. Rxa8 {[%clk
00:13:47]} {[%emt 00:02:37]} Rxa8 {[%clk 00:12:39]} {[%emt 00:00:05]} 19. Rf1
{[%clk 00:13:40]} {[%emt 00:00:12]} Nh5 {[%clk 00:11:08]} {[%emt 00:01:37]} 20.
d4 {[%clk 00:12:56]} {[%emt 00:00:49]} Bb6 {[%clk 00:11:03]} {[%emt 00:00:10]}
21. g3 {[%clk 00:10:59]} {[%emt 00:02:02]} Qd7 {[%clk 00:08:23]} {[%emt
00:02:41]} 22. Kg2 {[%clk 00:10:02]} {[%emt 00:01:06]} Re8 {[%clk 00:07:02]}
{[%emt 00:01:26]} 23. d5 {[%clk 00:08:25]} {[%emt 00:01:42]} Bc8 {[%clk
00:07:00]} {[%emt 00:00:06]} 24. Rh1 {[%clk 00:08:23]} {[%emt 00:00:07]} f5
{[%clk 00:06:42]} {[%emt 00:00:23]} 25. c4 {[%clk 00:07:31]} {[%emt 00:00:58]}
Nf6 {[%clk 00:06:24]} {[%emt 00:00:23]} 26. cxb5 {[%clk 00:06:39]} {[%emt
00:00:57]} fxe4 {[%clk 00:05:32]} {[%emt 00:00:57]} 27. Nxe4 {[%clk 00:06:36]}
{[%emt 00:00:08]} Nxe4 {[%clk 00:05:33]} {[%emt 00:00:04]} 28. Qxe4 {[%clk
00:06:39]} {[%emt 00:00:03]} Qxb5 {[%clk 00:05:35]} {[%emt 00:00:03]} 29. Qa4
{[%clk 00:05:55]} {[%emt 00:00:49]} Bd7 {[%clk 00:04:52]} {[%emt 00:00:48]} 30.
Qxb5 {[%clk 00:05:42]} {[%emt 00:00:18]} Bxb5 {[%clk 00:04:56]} {[%emt
00:00:02]} 31. Re1 {[%clk 00:05:21]} {[%emt 00:00:23]} Bc5 {[%clk 00:03:58]}
{[%emt 00:01:05]} 32. Nd2 {[%clk 00:04:20]} {[%emt 00:01:04]} Bd3 {[%clk
00:03:40]} {[%emt 00:00:25]} 33. Bc4 {[%clk 00:03:53]} {[%emt 00:00:32]} Bg6
{[%clk 00:03:28]} {[%emt 00:00:17]} 34. b3 {[%clk 00:03:25]} {[%emt 00:00:34]}
Rf8 {[%clk 00:03:09]} {[%emt 00:00:23]} 35. Re2 {[%clk 00:03:18]} {[%emt
00:00:13]} Rf6 {[%clk 00:02:46]} {[%emt 00:00:27]} 36. f3 {[%clk 00:02:52]}
{[%emt 00:00:31]} Kf8 {[%clk 00:02:42]} {[%emt 00:00:09]} 37. Ne4 {[%clk
00:02:54]} Bxe4 {[%clk 00:02:44]} {[%emt 00:00:06]} 38. Rxe4 {[%emt 00:00:42]}
Ke7 39. f4 {[%clk 00:02:38]} Bd4 {[%clk 00:01:56]} {[%emt 00:00:41]} 40. Kf3
{[%clk 00:02:06]} {[%emt 00:00:37]} Kd7 {[%clk 00:01:26]} {[%emt 00:00:35]} 41.
Bb5+ {[%clk 00:01:30]} {[%emt 00:00:41]} Ke7 {[%clk 00:01:29]} {[%emt
00:00:01]} 42. Bc6 {[%clk 00:01:31]} {[%emt 00:00:05]} Rf8 {[%clk 00:01:29]}
{[%emt 00:00:05]} 43. g4 {[%clk 00:01:14]} {[%emt 00:00:22]} Rb8 {[%clk
00:01:23]} {[%emt 00:00:11]} 44. Ba4 {[%clk 00:01:18]} {[%emt 00:00:01]} Kf6
{[%clk 00:01:04]} {[%emt 00:00:24]} 45. fxe5+ {[%clk 00:01:08]} {[%emt
00:00:15]} dxe5 {[%clk 00:00:35]} {[%emt 00:00:34]} 46. h4 {[%clk 00:00:45]}
{[%emt 00:00:28]} Rd8 {[%clk 00:00:39]} {[%emt 00:00:02]} 47. Bc6 {[%clk
00:00:45]} {[%emt 00:00:04]} Rb8 {[%clk 00:00:41]} {[%emt 00:00:03]} 48. Ba4
{[%clk 00:00:49]} {[%emt 00:00:01]} Rb6 {[%clk 00:00:33]} {[%emt 00:00:12]} 49.
Ke2 {[%clk 00:00:32]} {[%emt 00:00:22]} Ke7 {[%clk 00:00:26]} {[%emt 00:00:13]}
50. Kf3 {[%clk 00:00:29]} {[%emt 00:00:09]} Kd6 {[%clk 00:00:26]} {[%emt
00:00:04]} 51. Rxd4 {[%clk 00:00:07]} {[%emt 00:00:27]} exd4 {[%emt 00:00:02]}
52. Ke4 Kc5 {[%clk 00:00:24]} {[%emt 00:00:10]} 53. h5 {[%clk 00:00:07]} {[%emt
00:00:10]} Rf6 {[%clk 00:00:17]} {[%emt 00:00:12]} 54. Be8 {[%clk 00:00:06]}
{[%emt 00:00:06]} Kb4 {[%clk 00:00:17]} {[%emt 00:00:05]} 55. Ba4 {[%clk
00:00:11]} {[%emt 00:00:01]} Kc3 {[%clk 00:00:21]} 56. Bc6 {[%clk 00:00:06]}
{[%emt 00:00:10]} d3 {[%clk 00:00:23]} {[%emt 00:00:02]} 0-1



[ePGN "0.1;DGT LiveChess/2.2.6"]

[Event "MČR juniorů a juniorek v rapid šachu 2024"]
[Site "Hotel Fit Fun, Harrachov, Czech Republic"]
[Date "2024.09.22"]
[Round "9.31"]
[White "Krizan Jakub"]
[Black "Jun Rostislav"]
[Result "0-1"]
[TimeControl "20+5"]
[WhiteFideId "23717017"]
[BlackFideId "23719524"]
[WhiteElo "1000"]
[BlackElo "1641"]

1. e4 {[%clk 00:20:08]} c5 {[%clk 00:20:09]} {[%emt 00:00:02]} 2. Nf3 {[%clk
00:20:12]} {[%emt 00:00:01]} Nc6 {[%clk 00:20:14]} 3. Bc4 {[%clk 00:20:11]}
{[%emt 00:00:06]} e6 {[%clk 00:20:17]} {[%emt 00:00:02]} 4. c3 {[%clk
00:20:09]} {[%emt 00:00:07]} Nf6 {[%clk 00:20:20]} {[%emt 00:00:02]} 5. d4
{[%clk 00:20:11]} {[%emt 00:00:03]} cxd4 {[%clk 00:20:23]} {[%emt 00:00:02]} 6.
cxd4 {[%clk 00:20:14]} {[%emt 00:00:01]} d6 {[%clk 00:20:28]} 7. Nc3 {[%clk
00:20:16]} {[%emt 00:00:04]} Be7 {[%clk 00:20:31]} {[%emt 00:00:01]} 8. O-O
{[%clk 00:20:18]} {[%emt 00:00:04]} O-O {[%clk 00:20:34]} {[%emt 00:00:02]} 9.
Bg5 {[%clk 00:19:54]} {[%emt 00:00:28]} a6 {[%clk 00:20:37]} {[%emt 00:00:03]}
10. a4 {[%clk 00:19:55]} {[%emt 00:00:04]} Qc7 {[%clk 00:20:34]} {[%emt
00:00:07]} 11. Qd2 {[%clk 00:19:35]} {[%emt 00:00:25]} h6 {[%clk 00:20:25]}
{[%emt 00:00:14]} 12. Bh4 {[%clk 00:19:36]} {[%emt 00:00:04]} b6 {[%clk
00:19:58]} {[%emt 00:00:32]} 13. Rad1 {[%clk 00:17:15]} {[%emt 00:02:26]} Bb7
{[%clk 00:19:53]} {[%emt 00:00:10]} 14. Bd3 {[%clk 00:16:15]} {[%emt 00:01:04]}
Nb4 {[%clk 00:19:14]} {[%emt 00:00:44]} 15. Bb1 {[%clk 00:16:15]} {[%emt
00:00:06]} Nc6 {[%clk 00:17:58]} {[%emt 00:01:21]} 16. Ne2 {[%clk 00:15:56]}
{[%emt 00:00:24]} a5 {[%clk 00:17:26]} {[%emt 00:00:37]} 17. Ng3 {[%clk
00:15:24]} {[%emt 00:00:36]} Qd8 {[%clk 00:15:51]} {[%emt 00:01:41]} 18. Qc2
{[%clk 00:15:16]} {[%emt 00:00:13]} Rc8 {[%clk 00:14:49]} {[%emt 00:01:06]} 19.
Bxf6 {[%clk 00:15:07]} {[%emt 00:00:14]} gxf6 {[%clk 00:13:58]} {[%emt
00:00:56]} 20. e5 {[%clk 00:14:57]} {[%emt 00:00:16]} f5 {[%clk 00:14:00]}
{[%emt 00:00:03]} 21. Qd2 {[%clk 00:14:32]} {[%emt 00:00:31]} Bg5 {[%clk
00:13:46]} {[%emt 00:00:19]} 22. Nxg5 {[%clk 00:14:15]} {[%emt 00:00:21]} Qxg5
{[%clk 00:13:48]} {[%emt 00:00:03]} 23. f4 {[%clk 00:13:55]} {[%emt 00:00:25]}
Qg6 {[%clk 00:12:06]} {[%emt 00:01:38]} 24. Qe2 {[%clk 00:13:23]} {[%emt
00:00:46]} Nb4 {[%clk 00:10:17]} {[%emt 00:01:55]} 25. Qb5 {[%clk 00:12:10]}
{[%emt 00:01:17]} Rb8 {[%clk 00:07:07]} {[%emt 00:03:15]} 26. Qd7 {[%clk
00:10:54]} {[%emt 00:01:21]} Rfd8 {[%clk 00:06:22]} {[%emt 00:00:49]} 27. Qe7
{[%clk 00:10:49]} {[%emt 00:00:11]} Nd5 {[%clk 00:06:26]} 28. Qh4 {[%clk
00:10:31]} {[%emt 00:00:23]} Ne3 {[%clk 00:06:09]} {[%emt 00:00:22]} 29. Rd3
{[%clk 00:10:30]} {[%emt 00:00:05]} Nxf1 {[%clk 00:06:09]} {[%emt 00:00:05]} 30.
Nxf1 {[%clk 00:10:33]} {[%emt 00:00:02]} Qxg2# {[%clk 00:06:07]} {[%emt
00:00:08]} 0-1



[ePGN "0.1;DGT LiveChess/2.2.6"]

[Event "MČR juniorů a juniorek v rapid šachu 2024"]
[Site "Hotel Fit Fun, Harrachov, Czech Republic"]
[Date "2024.09.22"]
[Round "9.32"]
[White "Dufkova Tereza"]
[Black "Hyam Robin"]
[Result "0-1"]
[TimeControl "20+5"]
[WhiteFideId "23744383"]
[BlackFideId "23773413"]
[WhiteElo "1601"]
[BlackElo "1571"]

1. e4 {[%clk 00:19:27]} {[%emt 00:00:43]} c5 {[%clk 00:19:54]} {[%emt
00:00:15]} 2. Bc4 {[%clk 00:19:24]} {[%emt 00:00:08]} e6 {[%clk 00:19:58]}
{[%emt 00:00:01]} 3. Nc3 {[%clk 00:19:21]} {[%emt 00:00:08]} Nc6 {[%clk
00:19:59]} {[%emt 00:00:04]} 4. Nf3 {[%clk 00:18:44]} {[%emt 00:00:43]} a6
{[%clk 00:19:55]} {[%emt 00:00:08]} 5. a4 {[%clk 00:18:47]} {[%emt 00:00:03]}
Nge7 {[%clk 00:19:59]} {[%emt 00:00:01]} 6. d3 {[%clk 00:18:43]} {[%emt
00:00:09]} d5 {[%clk 00:20:02]} {[%emt 00:00:02]} 7. exd5 {[%clk 00:18:34]}
{[%emt 00:00:14]} exd5 {[%clk 00:20:05]} {[%emt 00:00:01]} 8. Ba2 {[%clk
00:17:28]} {[%emt 00:01:11]} b5 {[%clk 00:19:22]} {[%emt 00:00:48]} 9. axb5
{[%clk 00:17:22]} {[%emt 00:00:12]} axb5 {[%clk 00:19:26]} {[%emt 00:00:01]} 10.
Nxb5 {[%clk 00:16:58]} {[%emt 00:00:30]} Qa5+ {[%clk 00:19:28]} 11. Bd2 {[%clk
00:16:48]} {[%emt 00:00:15]} Qxb5 {[%clk 00:19:08]} {[%emt 00:00:25]} 12. Bxd5
{[%clk 00:15:27]} {[%emt 00:01:26]} Rxa1 {[%clk 00:18:47]} {[%emt 00:00:26]} 13.
Bxc6+ {[%clk 00:15:30]} {[%emt 00:00:03]} Nxc6 {[%clk 00:18:43]} {[%emt
00:00:07]} 14. Qxa1 {[%clk 00:15:33]} {[%emt 00:00:04]} Be7 {[%clk 00:18:16]}
{[%emt 00:00:30]} 15. O-O {[%clk 00:15:30]} {[%emt 00:00:10]} O-O {[%clk
00:18:18]} {[%emt 00:00:03]} 16. Re1 {[%clk 00:15:14]} {[%emt 00:00:20]} Bf6
{[%clk 00:17:53]} {[%emt 00:00:29]} 17. Bc3 {[%clk 00:15:13]} {[%emt 00:00:08]}
Bxc3 {[%clk 00:17:50]} {[%emt 00:00:08]} 18. bxc3 {[%clk 00:15:15]} {[%emt
00:00:03]} Qa5 {[%clk 00:16:52]} {[%emt 00:01:01]} 19. c4 {[%clk 00:15:03]}
{[%emt 00:00:19]} Qxa1 {[%clk 00:16:49]} {[%emt 00:00:07]} 20. Rxa1 {[%clk
00:15:06]} {[%emt 00:00:03]} Bg4 {[%clk 00:16:12]} {[%emt 00:00:40]} 21. Nd2
{[%clk 00:14:17]} {[%emt 00:00:55]} Nd4 {[%clk 00:15:32]} {[%emt 00:00:43]} 22.
Ra2 {[%clk 00:13:03]} {[%emt 00:01:14]} Bd1 {[%clk 00:14:44]} {[%emt 00:00:57]}
23. Ne4 {[%clk 00:12:55]} {[%emt 00:00:16]} Re8 {[%clk 00:14:24]} {[%emt
00:00:23]} 24. h3 {[%clk 00:12:34]} {[%emt 00:00:28]} Bxc2 {[%clk 00:14:07]}
{[%emt 00:00:21]} 25. Nxc5 {[%clk 00:12:37]} {[%emt 00:00:03]} Re1+ {[%clk
00:13:21]} {[%emt 00:00:50]} 26. Kh2 {[%clk 00:12:40]} g6 {[%clk 00:12:41]}
{[%emt 00:00:48]} 27. Ra8+ {[%clk 00:11:33]} Kg7 {[%clk 00:12:42]} {[%emt
00:01:15]} 28. Rd8 {[%clk 00:11:36]} Nb3 {[%clk 00:12:04]} {[%emt 00:00:44]} 29.
d4 {[%clk 00:11:36]} Nxc5 {[%clk 00:12:00]} {[%emt 00:00:16]} 30. dxc5 {[%clk
00:11:38]} Re5 {[%clk 00:10:33]} {[%emt 00:01:27]} 31. Rd5 {[%clk 00:11:37]}
Rxd5 {[%clk 00:10:29]} {[%emt 00:00:21]} 32. cxd5 {[%clk 00:11:41]} Bb3 {[%clk
00:10:22]} {[%emt 00:00:09]} 33. d6 Ba4 {[%clk 00:10:22]} {[%emt 00:00:01]} 34.
Kg3 {[%clk 00:11:34]} {[%emt 00:00:26]} Kf6 {[%clk 00:10:25]} {[%emt 00:00:03]}
35. Kf4 {[%clk 00:11:36]} {[%emt 00:00:02]} Bc6 {[%clk 00:10:25]} {[%emt
00:00:06]} 36. g4 {[%clk 00:11:23]} {[%emt 00:00:18]} g5+ {[%clk 00:10:29]}
{[%emt 00:00:01]} 37. Kg3 {[%clk 00:11:18]} {[%emt 00:00:09]} Ke5 {[%clk
00:10:32]} {[%emt 00:00:03]} 38. h4 {[%clk 00:11:21]} {[%emt 00:00:02]} h6
{[%clk 00:10:33]} {[%emt 00:00:03]} 39. hxg5 {[%clk 00:11:17]} {[%emt
00:00:09]} hxg5 {[%clk 00:10:37]} {[%emt 00:00:02]} 40. Kh3 {[%clk 00:11:17]}
{[%emt 00:00:45]} Kf4 {[%clk 00:09:54]} {[%emt 00:00:28]} 41. Kh2 {[%clk
00:11:15]} {[%emt 00:00:07]} Kxg4 {[%clk 00:09:55]} {[%emt 00:00:05]} 42. Kg1
{[%clk 00:11:16]} {[%emt 00:00:03]} Kf5 {[%clk 00:09:51]} {[%emt 00:00:07]} 43.
Kh2 {[%clk 00:11:20]} {[%emt 00:00:05]} Ke5 {[%clk 00:09:52]} {[%emt 00:00:03]}
44. Kg3 {[%clk 00:11:24]} {[%emt 00:00:01]} f5 {[%clk 00:09:54]} {[%emt
00:00:03]} 45. Kh3 {[%clk 00:11:25]} {[%emt 00:00:05]} Kd5 {[%clk 00:09:51]}
{[%emt 00:00:07]} 46. Kg3 {[%emt 00:00:04]} Kxc5 {[%clk 00:09:50]} {[%emt
00:00:04]} 47. f4 {[%clk 00:11:32]} g4 {[%clk 00:09:44]} {[%emt 00:00:12]} 48.
Kh4 {[%clk 00:11:31]} {[%emt 00:00:07]} Kxd6 {[%clk 00:09:45]} {[%emt
00:00:02]} 49. Kg3 {[%clk 00:11:33]} {[%emt 00:00:04]} Be4 {[%clk 00:09:48]}
{[%emt 00:00:02]} 50. Kh4 {[%clk 00:11:36]} {[%emt 00:00:02]} Kd5 {[%clk
00:09:51]} {[%emt 00:00:02]} 51. Kg3 {[%clk 00:11:43]} {[%emt 00:00:01]} Kd4
{[%clk 00:09:59]} 52. Kh4 {[%clk 00:11:46]} {[%emt 00:00:16]} Ke3 {[%clk
00:09:59]} 53. Kh5 {[%clk 00:11:46]} Bf3 {[%emt 00:00:04]} 54. Kh4 Kxf4 {[%clk
00:09:59]} 55. Kh5 {[%clk 00:11:49]} {[%emt 00:00:02]} g3+ {[%clk 00:10:01]}
{[%emt 00:00:03]} 56. Kh4 {[%clk 00:11:53]} {[%emt 00:00:02]} g2 {[%clk
00:09:55]} {[%emt 00:00:10]} 57. Kh3 {[%clk 00:11:56]} {[%emt 00:00:03]} g1=B
{[%clk 00:09:42]} {[%emt 00:00:18]} 58. Kh4 {[%clk 00:11:56]} {[%emt 00:00:03]}
Bf2 {[%clk 00:09:40]} {[%emt 00:00:05]} 59. Kh3 {[%clk 00:11:58]} {[%emt
00:00:06]} Ke3 {[%clk 00:09:24]} {[%emt 00:00:21]} 60. Kh2 {[%clk 00:12:01]}
{[%emt 00:00:03]} Ke2 {[%clk 00:09:27]} 61. Kh3 {[%clk 00:12:06]} Kf1 {[%clk
00:09:31]} {[%emt 00:00:02]} 62. Kh2 {[%clk 00:12:07]} {[%emt 00:00:04]} Bg1+
{[%clk 00:09:31]} {[%emt 00:00:04]} 63. Kg3 {[%clk 00:12:10]} {[%emt 00:00:03]}
Bg2 {[%clk 00:09:34]} {[%emt 00:00:01]} 64. Kf4 {[%clk 00:12:10]} {[%emt
00:00:04]} Bf2 {[%clk 00:09:36]} {[%emt 00:00:04]} 65. Kxf5 {[%clk 00:12:12]}
{[%emt 00:00:04]} Bf3 {[%clk 00:09:39]} {[%emt 00:00:02]} 66. Kf4 {[%clk
00:12:15]} {[%emt 00:00:01]} Ke2 {[%clk 00:09:42]} {[%emt 00:00:02]} 67. Ke5
{[%clk 00:12:16]} {[%emt 00:00:04]} Be3 {[%clk 00:09:45]} {[%emt 00:00:02]} 68.
Kf5 {[%clk 00:12:18]} {[%emt 00:00:03]} Kd3 {[%clk 00:09:48]} {[%emt 00:00:02]}
69. Ke5 {[%clk 00:12:22]} {[%emt 00:00:02]} Be4 {[%clk 00:09:51]} 70. Ke6
{[%clk 00:12:24]} {[%emt 00:00:03]} Bd4 {[%clk 00:09:54]} {[%emt 00:00:02]} 71.
Kd6 {[%clk 00:12:27]} {[%emt 00:00:02]} Kc4 {[%clk 00:09:57]} {[%emt 00:00:02]}
72. Ke6 {[%clk 00:12:31]} {[%emt 00:00:01]} Kd3 {[%emt 00:00:08]} 73. Ke7
{[%clk 00:12:31]} Bd5 {[%clk 00:10:02]} {[%emt 00:00:01]} 74. Kd6 {[%clk
00:12:35]} {[%emt 00:00:02]} Kc4 {[%clk 00:10:04]} {[%emt 00:00:02]} 75. Ke7
{[%clk 00:12:37]} {[%emt 00:00:03]} Be5 {[%clk 00:10:06]} {[%emt 00:00:03]} 76.
Kd7 {[%clk 00:12:40]} {[%emt 00:00:02]} Kd4 {[%clk 00:10:09]} {[%emt 00:00:02]}
77. Ke7 {[%clk 00:12:42]} {[%emt 00:00:04]} Kc5 {[%clk 00:10:12]} {[%emt
00:00:01]} 78. Kd7 {[%clk 00:12:44]} {[%emt 00:00:03]} Bd6 {[%clk 00:10:16]}
{[%emt 00:00:01]} 79. Ke8 {[%clk 00:12:47]} {[%emt 00:00:02]} Be6 {[%clk
00:10:18]} {[%emt 00:00:02]} 80. Kd8 {[%clk 00:12:51]} {[%emt 00:00:02]} Kd5
{[%clk 00:10:22]} {[%emt 00:00:01]} 81. Ke8 {[%clk 00:12:55]} {[%emt 00:00:02]}
Kc6 {[%clk 00:10:26]} 82. Kd8 {[%clk 00:12:59]} {[%emt 00:00:02]} Bf7 {[%clk
00:10:30]} {[%emt 00:00:01]} 83. Kc8 {[%clk 00:12:57]} {[%emt 00:00:06]} Be7
{[%clk 00:10:33]} {[%emt 00:00:02]} 84. Kb8 {[%clk 00:13:01]} {[%emt 00:00:02]}
Kb6 {[%clk 00:10:36]} {[%emt 00:00:01]} 85. Kc8 {[%clk 00:13:05]} {[%emt
00:00:02]} Be6+ {[%clk 00:10:39]} {[%emt 00:00:01]} 86. Kb8 {[%clk 00:13:09]}
{[%emt 00:00:01]} Bd6+ {[%clk 00:10:43]} {[%emt 00:00:01]} 87. Ka8 {[%clk
00:13:12]} {[%emt 00:00:02]} Bd5# {[%clk 00:10:46]} {[%emt 00:00:02]} 0-1



[ePGN "0.1;DGT LiveChess/2.2.6"]

[Event "MČR juniorů a juniorek v rapid šachu 2024"]
[Site "Hotel Fit Fun, Harrachov, Czech Republic"]
[Date "2024.09.22"]
[Round "9.33"]
[White "Hudik Martin"]
[Black "Vondra Filip"]
[Result "1/2-1/2"]
[TimeControl "20+5"]
[WhiteFideId "23769947"]
[BlackFideId "23725176"]
[WhiteElo "1572"]
[BlackElo "1598"]

1. e4 {[%clk 00:20:08]} {[%emt 00:00:02]} d5 {[%clk 00:20:04]} {[%emt
00:00:07]} 2. exd5 {[%emt 00:00:02]} Nf6 3. d4 {[%clk 00:20:12]} {[%emt
00:00:04]} Nxd5 {[%emt 00:00:02]} 4. Nf3 {[%clk 00:20:10]} {[%emt 00:00:06]}
Bg4 {[%clk 00:20:17]} 5. Be2 {[%clk 00:20:10]} {[%emt 00:00:06]} Nc6 {[%clk
00:20:21]} 6. O-O {[%clk 00:19:56]} {[%emt 00:00:19]} e6 {[%clk 00:20:25]} 7.
c4 {[%clk 00:19:33]} {[%emt 00:00:28]} Nb6 {[%clk 00:20:26]} {[%emt 00:00:04]}
8. c5 {[%clk 00:18:49]} {[%emt 00:00:49]} Nd5 {[%clk 00:20:30]} {[%emt
00:00:02]} 9. Be3 {[%clk 00:17:50]} {[%emt 00:01:03]} Be7 {[%clk 00:20:33]}
{[%emt 00:00:02]} 10. h3 {[%clk 00:17:28]} {[%emt 00:00:27]} Bh5 {[%clk
00:20:36]} {[%emt 00:00:02]} 11. Re1 {[%clk 00:17:17]} {[%emt 00:00:16]} O-O
{[%clk 00:20:39]} {[%emt 00:00:02]} 12. Nbd2 {[%clk 00:17:17]} {[%emt
00:00:05]} a6 {[%clk 00:18:43]} {[%emt 00:02:01]} 13. Nf1 {[%clk 00:17:10]}
{[%emt 00:00:12]} Bf6 {[%clk 00:18:11]} {[%emt 00:00:37]} 14. Ng3 {[%clk
00:16:39]} {[%emt 00:00:35]} Bg6 {[%clk 00:17:53]} {[%emt 00:00:24]} 15. a3
{[%clk 00:16:19]} {[%emt 00:00:26]} Qd7 {[%clk 00:17:43]} {[%emt 00:00:14]} 16.
Bd3 {[%clk 00:15:47]} {[%emt 00:00:36]} Bxd3 {[%clk 00:16:37]} {[%emt
00:01:11]} 17. Qxd3 {[%clk 00:15:43]} {[%emt 00:00:09]} Rad8 {[%clk 00:16:28]}
{[%emt 00:00:14]} 18. Rad1 {[%clk 00:15:38]} {[%emt 00:00:10]} Nxe3 {[%clk
00:14:57]} {[%emt 00:01:37]} 19. fxe3 {[%clk 00:15:38]} {[%emt 00:00:06]} e5
{[%clk 00:14:48]} {[%emt 00:00:13]} 20. d5 {[%clk 00:13:32]} {[%emt 00:02:11]}
Ne7 {[%clk 00:10:36]} {[%emt 00:04:18]} 21. e4 {[%clk 00:12:40]} {[%emt
00:00:56]} Ng6 {[%clk 00:08:46]} {[%emt 00:01:55]} 22. Qd2 {[%clk 00:08:37]}
{[%emt 00:04:08]} Nf4 {[%clk 00:08:07]} {[%emt 00:00:44]} 23. Ne2 {[%clk
00:07:29]} {[%emt 00:01:13]} Nxe2+ {[%clk 00:05:40]} {[%emt 00:02:32]} 24. Rxe2
{[%clk 00:07:19]} {[%emt 00:00:15]} Qe7 {[%clk 00:05:33]} {[%emt 00:00:12]} 25.
b4 {[%clk 00:06:14]} {[%emt 00:01:10]} h6 {[%clk 00:04:15]} {[%emt 00:01:23]}
26. Qc3 {[%clk 00:05:40]} {[%emt 00:00:39]} 1/2-1/2



[ePGN "0.1;DGT LiveChess/2.2.6"]